fUSD/lending_fUSD_20240114
["ID","MTS","AMOUNT","RATE_DAILY","PERIOD"]
[311605023,1705264306740,-500.0,0.0003178,2]
[311605024,1705264306750,-500.0,0.0003178,2]
[311605025,1705264306759,-500.0,0.0003178,2]
[311605026,1705264306768,-500.0,0.0003178,2]
[311605027,1705264306778,-904.67,0.0003178,2]
[311605028,1705264306788,-500.0,0.0003178,2]
[311605029,1705264306798,-500.0,0.0003178,2]
[311605030,1705264306807,-500.0,0.0003178,2]
[311605031,1705264306817,-500.0,0.0003178,2]
[311605032,1705264306827,-500.0,0.0003178,2]
[311605033,1705264306836,-500.0,0.0003178,2]
[311605034,1705264306846,-500.0,0.0003178,2]
[311605035,1705264306856,-500.0,0.0003178,2]
[311605036,1705264306866,-508.74,0.0003178,2]
[311605037,1705264306876,-500.0,0.0003178,2]
[311605038,1705264306885,-500.0,0.0003178,2]
[311605039,1705264306895,-501.92,0.0003178,2]
[311605040,1705264306906,-500.0,0.0003178,2]
[311605041,1705264306915,-232.81251031,0.0003178,2]
[311605042,1705264306925,-502.98,0.0003178,2]
[311605043,1705264306934,-500.0,0.0003178,2]
[311605044,1705264306944,-549.05,0.0003178,2]
[311605045,1705264306954,-500.0,0.0003178,2]
[311605046,1705264306963,-500.0,0.0003178,2]
[311605047,1705264306972,-768.43,0.0003178,2]
[311605048,1705264306982,-500.0,0.0003178,2]
[311605049,1705264306991,-500.0,0.0003178,2]
[311605050,1705264307001,-733.75,0.0003178,2]
[311605051,1705264307010,-1482.34,0.0003178,2]
[311605052,1705264307021,-500.0,0.0003178,2]
[311605053,1705264307031,-500.0,0.0003178,2]
[311605054,1705264307041,-987.24,0.0003178,2]
[311605055,1705264307052,-500.0,0.0003178,2]
[311605056,1705264307062,-500.0,0.0003178,2]
[311605057,1705264307072,-500.0,0.0003178,2]
[311605058,1705264307081,-500.0,0.0003178,2]
[311605059,1705264307091,-500.0,0.0003178,2]
[311605060,1705264307101,-500.0,0.0003178,2]
[311605061,1705264307111,-522.06,0.0003178,2]
[311605062,1705264307121,-500.0,0.0003178,2]
[311605063,1705264307132,-500.0,0.0003178,2]
[311605064,1705264307142,-902.15,0.0003178,2]
[311605065,1705264307152,-500.0,0.0003178,2]
[311605066,1705264307162,-500.0,0.0003178,2]
[311605067,1705264307172,-500.0,0.0003178,2]
[311605068,1705264307181,-500.0,0.0003178,2]
[311605069,1705264307191,-435.60674497,0.0003178,2]
[311605070,1705264307200,-500.0,0.0003178,2]
[311605071,1705264307209,-373.86188354,0.0003178,2]
[311605072,1705264307219,-633.15,0.0003178,2]
[311605073,1705264307228,-500.0,0.0003178,2]
[311605074,1705264307238,-500.0,0.0003178,2]
[311605075,1705264307247,-733.43,0.0003178,2]
[311605076,1705264307256,-681.94,0.0003178,2]
[311605077,1705264307266,-500.0,0.0003178,2]
[311605078,1705264307275,-500.0,0.0003178,2]
[311605079,1705264307284,-500.0,0.0003178,2]
[311605080,1705264307294,-500.0,0.0003178,2]
[311605081,1705264307303,-861.38,0.0003178,2]
[311605082,1705264307312,-500.0,0.0003178,2]
[311605083,1705264307321,-607.46,0.0003178,2]
[311605084,1705264307331,-871.23,0.0003178,2]
[311605085,1705264307340,-540.76,0.0003178,2]
[311605086,1705264307349,-731.62,0.0003178,2]
[311605087,1705264307358,-500.0,0.0003178,2]
[311605088,1705264307367,-500.0,0.0003178,2]
[311605089,1705264307377,-500.0,0.0003178,2]
[311605090,1705264307388,-573.03,0.0003178,2]
[311605091,1705264307398,-500.0,0.0003178,2]
[311605092,1705264307408,-500.0,0.0003178,2]
[311605093,1705264307418,-500.0,0.0003178,2]
[311605094,1705264307428,-500.0,0.0003178,2]
[311605095,1705264307438,-500.0,0.0003178,2]
[311605096,1705264307447,-541.18,0.0003178,2]
[311605097,1705264307456,-500.0,0.0003178,2]
[311605098,1705264307466,-1043.04,0.0003178,2]
[311605099,1705264307475,-524.14,0.0003178,2]
[311605100,1705264307485,-500.0,0.0003178,2]
[311605101,1705264307494,-971.45,0.0003178,2]
[311605102,1705264307504,-720.76,0.0003178,2]
[311605103,1705264307515,-1331.65,0.0003178,2]
[311605104,1705264307525,-500.0,0.0003178,2]
[311605105,1705264307535,-500.0,0.0003178,2]
[311605106,1705264307544,-500.0,0.0003178,2]
[311605107,1705264307554,-887.35,0.0003178,2]
[311605108,1705264307564,-1632.65,0.0003178,2]
[311605109,1705264307573,-1287.99,0.0003178,2]
[311605110,1705264307583,-500.0,0.0003178,2]
[311605111,1705264307593,-500.0,0.0003178,2]
[311605112,1705264307602,-500.0,0.0003178,2]
[311605113,1705264307611,-500.0,0.0003178,2]
[311605114,1705264307621,-500.0,0.0003178,2]
[311605115,1705264307630,-568.32,0.0003178,2]
[311605116,1705264307640,-1075.72,0.0003178,2]
[311605117,1705264307650,-368.11833588,0.0003178,2]
[311605118,1705264307659,-966.98,0.0003178,2]
[311605119,1705264307669,-611.32,0.0003178,2]
[311605120,1705264307678,-1190.52,0.0003178,2]
[311605121,1705264307688,-1150.22,0.0003178,2]
[311605122,1705264307697,-804.23,0.0003178,2]
[311605123,1705264307706,-500.0,0.0003178,2]
[311605124,1705264307717,-881.95,0.0003178,2]
[311605125,1705264307727,-500.0,0.0003178,2]
[311605126,1705264307737,-500.0,0.0003178,2]
[311605127,1705264307747,-523.69,0.0003178,2]
[311605128,1705264307758,-604.18,0.0003178,2]
[311605129,1705264307768,-500.0,0.0003178,2]
[311605130,1705264307778,-737.47,0.0003178,2]
[311605131,1705264307787,-500.0,0.0003178,2]
[311605132,1705264307797,-500.0,0.0003178,2]
[311605133,1705264307806,-500.0,0.0003178,2]
[311605134,1705264307816,-816.74,0.0003178,2]
[311605135,1705264307826,-500.0,0.0003178,2]
[311605136,1705264307835,-500.0,0.0003178,2]
[311605137,1705264307844,-500.0,0.0003178,2]
[311605138,1705264307853,-1018.42,0.0003178,2]
[311605139,1705264307863,-691.77,0.0003178,2]
[311605140,1705264307873,-510.0348096,0.0003178,2]
[311605141,1705264307882,-532.86,0.0003178,2]
[311605142,1705264307892,-500.0,0.0003178,2]
[311605143,1705264307901,-500.0,0.0003178,2]
[311605144,1705264307910,-500.0,0.0003178,2]
[311605145,1705264307920,-500.0,0.0003178,2]
[311605146,1705264307929,-500.0,0.0003178,2]
[311605147,1705264307938,-500.0,0.0003178,2]
[311605148,1705264307948,-624.45,0.0003178,2]
[311605149,1705264307957,-592.67,0.0003178,2]
[311605150,1705264307966,-500.0,0.0003178,2]
[311605151,1705264307975,-840.8,0.0003178,2]
[311605152,1705264307984,-1035.43,0.0003178,2]
[311605153,1705264307993,-901.33,0.0003178,2]
[311605154,1705264308002,-983.46,0.0003178,2]
[311605155,1705264308011,-500.0,0.0003178,2]
[311605156,1705264308020,-705.45,0.0003178,2]
[311605157,1705264308030,-500.0,0.0003178,2]
[311605158,1705264308040,-511.79,0.0003178,2]
[311605159,1705264308049,-500.0,0.0003178,2]
[311605160,1705264308059,-531.03,0.0003178,2]
[311605161,1705264308068,-500.0,0.0003178,2]
[311605162,1705264308077,-583.5,0.0003178,2]
[311605163,1705264308087,-500.0,0.0003178,2]
[311605164,1705264308096,-652.55,0.0003178,2]
[311605165,1705264308106,-189.31099768,0.0003178,2]
[311605166,1705264308116,-500.0,0.0003178,2]
[311605167,1705264308126,-519.09,0.0003178,2]
[311605168,1705264308136,-500.0,0.0003178,2]
[311605169,1705264308147,-603.94,0.0003178,2]
[311605170,1705264308158,-782.01,0.0003178,2]
[311605171,1705264308169,-919.27,0.0003178,2]
[311605172,1705264308179,-655.09,0.0003178,2]
[311605173,1705264308189,-500.0,0.0003178,2]
[311605174,1705264308198,-848.01,0.0003178,2]
[311605175,1705264308208,-300.0,0.0003178,2]
[311605176,1705264308217,-500.0,0.0003178,2]
[311605177,1705264308227,-500.0,0.0003178,2]
[311605178,1705264308239,-500.0,0.0003178,2]
[311605179,1705264308248,-512.56,0.0003178,2]
[311605180,1705264308258,-912.72,0.0003178,2]
[311605181,1705264308268,-773.77,0.0003178,2]
[311605182,1705264308277,-932.74,0.0003178,2]
[311605183,1705264308287,-672.78,0.0003178,2]
[311605184,1705264308297,-500.0,0.0003178,2]
[311605185,1705264308307,-500.0,0.0003178,2]
[311605186,1705264308316,-675.44,0.0003178,2]
[311605187,1705264308325,-592.65,0.0003178,2]
[311605188,1705264308334,-812.07,0.0003178,2]
[311605189,1705264308344,-500.0,0.0003178,2]
[311605190,1705264308354,-623.53,0.0003178,2]
[311605191,1705264308363,-500.0,0.0003178,2]
[311605192,1705264308373,-500.0,0.0003178,2]
[311605193,1705264308382,-584.39,0.0003178,2]
[311605194,1705264308490,-500.0,0.0003178,2]
[311605195,1705264308500,-652.39,0.0003178,2]
[311605196,1705264308510,-901.97,0.0003178,2]
[311605197,1705264308520,-500.0,0.0003178,2]
[311605198,1705264308530,-500.0,0.0003178,2]
[311605199,1705264308540,-1030.54,0.0003178,2]
[311605200,1705264308549,-500.0,0.0003178,2]
[311605201,1705264308558,-500.0,0.0003178,2]
[311605202,1705264308567,-500.0,0.0003178,2]
[311605203,1705264308577,-518.72132691,0.0003178,2]
[311605204,1705264308586,-500.0,0.0003178,2]
[311605205,1705264308595,-1012.56,0.0003178,2]
[311605206,1705264308605,-602.82,0.0003178,2]
[311605207,1705264308614,-763.69,0.0003178,2]
[311605208,1705264308624,-500.0,0.0003178,2]
[311605209,1705264308633,-500.0,0.0003178,2]
[311605210,1705264308643,-525.95,0.0003178,2]
[311605211,1705264308652,-500.0,0.0003178,2]
[311605212,1705264308662,-500.0,0.0003178,2]
[311605213,1705264308672,-500.0,0.0003178,2]
[311605214,1705264308681,-507.67,0.0003178,2]
[311605215,1705264308690,-513.81,0.0003178,2]
[311605216,1705264308699,-636.62,0.0003178,2]
[311605217,1705264308708,-500.0,0.0003178,2]
[311605218,1705264308717,-902.91,0.0003178,2]
[311605219,1705264308727,-767.34,0.0003178,2]
[311605220,1705264308736,-1333.47,0.0003178,2]
[311605221,1705264308745,-638.06,0.0003178,2]
[311605222,1705264308754,-500.0,0.0003178,2]
[311605223,1705264308764,-803.03,0.0003178,2]
[311605224,1705264308773,-500.0,0.0003178,2]
[311605225,1705264308783,-500.0,0.0003178,2]
[311605226,1705264308793,-500.0,0.0003178,2]
[311605227,1705264308805,-500.0,0.0003178,2]
[311605228,1705264308815,-536.45,0.0003178,2]
[311605229,1705264308824,-500.0,0.0003178,2]
[311605230,1705264308833,-598.26,0.0003178,2]
[311605231,1705264308842,-500.0,0.0003178,2]
[311605232,1705264308851,-661.41,0.0003178,2]
[311605233,1705264308860,-1303.11,0.0003178,2]
[311605234,1705264308869,-776.96,0.0003178,2]
[311605235,1705264308882,-500.0,0.0003178,2]
[311605236,1705264308892,-500.0,0.0003178,2]
[311605237,1705264308902,-619.53,0.0003178,2]
[311605238,1705264308912,-583.54,0.0003178,2]
[311605239,1705264308922,-1031.14,0.0003178,2]
[311605240,1705264308931,-1069.22,0.0003178,2]
[311605241,1705264308941,-668.9,0.0003178,2]
[311605242,1705264308951,-500.0,0.0003178,2]
[311605243,1705264308960,-500.0,0.0003178,2]
[311605244,1705264308970,-500.0,0.0003178,2]
[311605245,1705264308979,-300.88771749,0.0003178,2]
[311605246,1705264308989,-500.0,0.0003178,2]
[311605247,1705264308999,-522.71,0.0003178,2]
[311605248,1705264309009,-500.0,0.0003178,2]
[311605249,1705264309018,-500.0,0.0003178,2]
[311605250,1705264309028,-623.93,0.0003178,2]
[311605251,1705264309038,-524.27,0.0003178,2]
[311605252,1705264309047,-1298.17,0.0003178,2]
[311605253,1705264309056,-500.0,0.0003178,2]
[311605254,1705264309065,-705.28,0.0003178,2]
[311605255,1705264309074,-553.43,0.0003178,2]
[311605256,1705264309084,-500.0,0.0003178,2]
[311605257,1705264309093,-841.22,0.0003178,2]
[311605258,1705264309102,-779.76,0.0003178,2]
[311605259,1705264309112,-500.0,0.0003178,2]
[311605260,1705264309122,-594.72,0.0003178,2]
[311605261,1705264309137,-663.62,0.0003178,2]
[311605262,1705264309149,-754.6,0.0003178,2]
[311605263,1705264309159,-971.46,0.0003178,2]
[311605264,1705264309169,-500.0,0.0003178,2]
[311605265,1705264309178,-500.0,0.0003178,2]
[311605266,1705264309188,-500.0,0.0003178,2]
[311605267,1705264309198,-640.22,0.0003178,2]
[311605268,1705264309207,-500.0,0.0003178,2]
[311605269,1705264309216,-880.9,0.0003178,2]
[311605270,1705264309225,-500.0,0.0003178,2]
[311605271,1705264309236,-1002.82,0.0003178,2]
[311605272,1705264309245,-668.12,0.0003178,2]
[311605273,1705264309254,-604.35,0.0003178,2]
[311605274,1705264309263,-690.19,0.0003178,2]
[311605275,1705264309272,-500.0,0.0003178,2]
[311605276,1705264309281,-500.0,0.0003178,2]
[311605277,1705264309290,-688.38,0.0003178,2]
[311605278,1705264309299,-619.28,0.0003178,2]
[311605279,1705264309309,-500.0,0.0003178,2]
[311605280,1705264309318,-529.02,0.0003178,2]
[311605281,1705264309328,-779.6,0.0003178,2]
[311605282,1705264309337,-500.0,0.0003178,2]
[311605283,1705264309347,-1160.15,0.0003178,2]
[311605284,1705264309356,-1042.53,0.0003178,2]
[311605285,1705264309366,-500.0,0.0003178,2]
[311605286,1705264309377,-500.0,0.0003178,2]
[311605287,1705264309386,-500.0,0.0003178,2]
[311605288,1705264309395,-500.0,0.0003178,2]
[311605289,1705264309403,-790.69,0.0003178,2]
[311605290,1705264309412,-684.1,0.0003178,2]
[311605291,1705264309421,-647.62,0.0003178,2]
[311605292,1705264309430,-516.27729107,0.0003178,2]
[311605293,1705264309440,-500.0,0.0003178,2]
[311605294,1705264309449,-500.0,0.0003178,2]
[311605295,1705264309459,-500.0,0.0003178,2]
[311605296,1705264309468,-500.0,0.0003178,2]
[311605297,1705264309477,-3167.32,0.0003178,2]
[311605298,1705264309486,-571.94,0.0003178,2]
[311605299,1705264309495,-567.97,0.0003178,2]
[311605300,1705264309504,-522.59,0.0003178,2]
[311605301,1705264309513,-500.0,0.0003178,2]
[311605302,1705264309522,-414.89437732,0.0003178,2]
[311605303,1705264309531,-500.0,0.0003178,2]
[311605304,1705264309540,-500.0,0.0003178,2]
[311605305,1705264309549,-774.9,0.0003178,2]
[311605306,1705264309558,-500.0,0.0003178,2]
[311605307,1705264309567,-1088.65,0.0003178,2]
[311605308,1705264309576,-500.0,0.0003178,2]
[311605309,1705264309585,-884.91,0.0003178,2]
[311605310,1705264309594,-1154.9,0.0003178,2]
[311605311,1705264309603,-537.49,0.0003178,2]
[311605312,1705264309612,-500.0,0.0003178,2]
[311605313,1705264309621,-766.25,0.0003178,2]
[311605314,1705264309633,-500.0,0.0003178,2]
[311605315,1705264309642,-500.0,0.0003178,2]
[311605316,1705264309651,-500.0,0.0003178,2]
[311605317,1705264309660,-500.0,0.0003178,2]
[311605318,1705264309670,-739.11,0.0003178,2]
[311605319,1705264309679,-500.0,0.0003178,2]
[311605320,1705264309688,-500.0,0.0003178,2]
[311605321,1705264309698,-2842.79,0.0003178,2]
[311605322,1705264309707,-703.48,0.0003178,2]
[311605323,1705264309715,-500.0,0.0003178,2]
[311605324,1705264309724,-500.0,0.0003178,2]
[311605325,1705264309734,-755.21,0.0003178,2]
[311605326,1705264309742,-500.0,0.0003178,2]
[311605327,1705264309751,-655.3,0.0003178,2]
[311605328,1705264309761,-500.0,0.0003178,2]
[311605329,1705264309770,-500.0,0.0003178,2]
[311605330,1705264309779,-649.3,0.0003178,2]
[311605331,1705264309789,-500.0,0.0003178,2]
[311605332,1705264309798,-1021.39,0.0003178,2]
[311605333,1705264309808,-500.0,0.0003178,2]
[311605334,1705264309818,-500.0,0.0003178,2]
[311605335,1705264309828,-1175.51,0.0003178,2]
[311605336,1705264309838,-500.0,0.0003178,2]
[311605337,1705264309848,-701.34,0.0003178,2]
[311605338,1705264309856,-686.32,0.0003178,2]
[311605339,1705264309869,-500.0,0.0003178,2]
[311605340,1705264309880,-1477.05,0.0003178,2]
[311605341,1705264309889,-956.76,0.0003178,2]
[311605342,1705264309898,-500.0,0.0003178,2]
[311605343,1705264309907,-500.0,0.0003178,2]
[311605344,1705264309916,-500.0,0.0003178,2]
[311605345,1705264309925,-601.17,0.0003178,2]
[311605346,1705264309934,-1476.27,0.0003178,2]
[311605347,1705264309943,-500.0,0.0003178,2]
[311605348,1705264309953,-500.0,0.0003178,2]
[311605349,1705264309961,-1151.69,0.0003178,2]
[311605350,1705264309972,-1030.11,0.0003178,2]
[311605351,1705264309981,-815.37,0.0003178,2]
[311605352,1705264309991,-500.0,0.0003178,2]
[311605353,1705264310000,-500.0,0.0003178,2]
[311605354,1705264310010,-500.0,0.0003178,2]
[311605355,1705264310019,-1060.69,0.0003178,2]
[311605356,1705264310028,-500.0,0.0003178,2]
[311605357,1705264310037,-500.0,0.0003178,2]
[311605358,1705264310046,-663.4,0.0003178,2]
[311605359,1705264310056,-500.0,0.0003178,2]
[311605360,1705264310066,-500.0,0.0003178,2]
[311605361,1705264310075,-1567.33,0.0003178,2]
[311605362,1705264310085,-507.53,0.0003178,2]
[311605363,1705264310094,-690.39,0.0003178,2]
[311605364,1705264310103,-1087.14,0.0003178,2]
[311605365,1705264310112,-780.22,0.0003178,2]
[311605366,1705264310122,-1031.89,0.0003178,2]
[311605367,1705264310134,-500.0,0.0003178,2]
[311605368,1705264310145,-15692.02,0.0003178,2]
[311605369,1705264310154,-720.95,0.0003178,2]
[311605370,1705264310166,-968.33,0.0003178,2]
[311605371,1705264310175,-500.0,0.0003178,2]
[311605372,1705264310184,-4778.91,0.0003178,2]
[311605373,1705264310194,-4080.55,0.0003178,2]
[311605374,1705264310203,-500.0,0.0003178,2]
[311605375,1705264310213,-524.66,0.0003178,2]
[311605376,1705264310222,-1610.45,0.0003178,2]
[311605377,1705264310231,-1037.02,0.0003178,2]
[311605378,1705264310242,-500.0,0.0003178,2]
[311605379,1705264310252,-500.0,0.0003178,2]
[311605380,1705264310262,-500.0,0.0003178,2]
[311605381,1705264310271,-753.69,0.0003178,2]
[311605382,1705264310281,-579.72092279,0.0003178,2]
[311605383,1705264310291,-512.48,0.0003178,2]
[311605384,1705264310300,-819.18,0.0003178,2]
[311605385,1705264310310,-658.91,0.0003178,2]
[311605386,1705264310319,-500.0,0.0003178,2]
[311605387,1705264310328,-922.23,0.0003178,2]
[311605388,1705264310337,-1259.43,0.0003178,2]
[311605389,1705264310346,-908.29,0.0003178,2]
[311605390,1705264310356,-500.0,0.0003178,2]
[311605391,1705264310365,-500.0,0.0003178,2]
[311605392,1705264310375,-500.0,0.0003178,2]
[311605393,1705264310385,-1934.5,0.0003178,2]
[311605394,1705264310394,-500.0,0.0003178,2]
[311605395,1705264310404,-500.0,0.0003178,2]
[311605396,1705264310413,-213.01405511,0.0003178,2]
[311605397,1705264310422,-1783.71,0.0003178,2]
[311605398,1705264310431,-1552.56,0.0003178,2]
[311605399,1705264310440,-500.0,0.0003178,2]
[311605400,1705264310449,-813.78,0.0003178,2]
[311605401,1705264310458,-508.7,0.0003178,2]
[311605402,1705264310467,-1672.88,0.0003178,2]
[311605403,1705264310476,-887.69,0.0003178,2]
[311605404,1705264310485,-1249.33,0.0003178,2]
[311605405,1705264310495,-1118.87,0.0003178,2]
[311605406,1705264310503,-1426.72,0.0003178,2]
[311605407,1705264310512,-544.74342854,0.0003178,2]
[311605408,1705264310522,-5627.11,0.0003178,2]
[311605409,1705264310531,-1369.47,0.0003178,2]
[311605410,1705264310540,-575.47,0.0003178,2]
[311605411,1705264310550,-570.84,0.0003178,2]
[311605412,1705264310560,-567.98,0.0003178,2]
[311605413,1705264310569,-552.23,0.0003178,2]
[311605414,1705264310579,-599.67,0.0003178,2]
[311605415,1705264310588,-500.0,0.0003178,2]
[311605416,1705264310598,-682.29,0.0003178,2]
[311605417,1705264310607,-799.56,0.0003178,2]
[311605418,1705264310616,-2554.34,0.0003178,2]
[311605419,1705264310628,-1798.17,0.0003178,2]
[311605420,1705264310637,-1153.92,0.0003178,2]
[311605421,1705264310646,-500.0,0.0003178,2]
[311605422,1705264310655,-2674.9,0.0003178,2]
[311605423,1705264310665,-4747.99,0.0003178,2]
[311605424,1705264310674,-874.04,0.0003178,2]
[311605425,1705264310683,-500.0,0.0003178,2]
[311605426,1705264310693,-522.44,0.0003178,2]
[311605427,1705264310703,-3082.22,0.0003178,2]
[311605428,1705264310712,-500.0,0.0003178,2]
[311605429,1705264310721,-2400.47,0.0003178,2]
[311605430,1705264310730,-953.45,0.0003178,2]
[311605431,1705264310739,-1501.1,0.0003178,2]
[311605432,1705264310748,-1591.7,0.0003178,2]
[311605433,1705264310758,-569.8977549,0.0003178,2]
[311605434,1705264310767,-500.0,0.0003178,2]
[311605435,1705264310777,-1195.23,0.0003178,2]
[311605436,1705264310786,-538.00062526,0.0003178,2]
[311605437,1705264310796,-500.0,0.0003178,2]
[311605438,1705264310805,-830.52,0.0003178,2]
[311605439,1705264310815,-645.86,0.0003178,2]
[311605440,1705264310825,-500.0,0.0003178,2]
[311605441,1705264310834,-500.0,0.0003178,2]
[311605442,1705264310844,-1563.61,0.0003178,2]
[311605443,1705264310853,-552.65,0.0003178,2]
[311605444,1705264310862,-500.0,0.0003178,2]
[311605445,1705264310872,-1788.89,0.0003178,2]
[311605446,1705264310884,-3852.95,0.0003178,2]
[311605447,1705264310894,-500.0,0.0003178,2]
[311605448,1705264310903,-3780.57,0.0003178,2]
[311605449,1705264310912,-689.0,0.0003178,2]
[311605450,1705264310922,-1077.68,0.0003178,2]
[311605451,1705264310931,-1026.83,0.0003178,2]
[311605452,1705264310940,-543.18,0.0003178,2]
[311605453,1705264310949,-500.0,0.0003178,2]
[311605454,1705264310959,-3887.42,0.0003178,2]
[311605455,1705264310969,-500.0,0.0003178,2]
[311605456,1705264310979,-8222.74,0.0003178,2]
[311605457,1705264310989,-706.36,0.0003178,2]
[311605458,1705264310999,-1212.77,0.0003178,2]
[311605459,1705264311009,-1605.08,0.0003178,2]
[311605460,1705264311019,-3010.13,0.0003178,2]
[311605461,1705264311029,-500.0,0.0003178,2]
[311605462,1705264311039,-500.0,0.0003178,2]
[311605463,1705264311048,-967.6,0.0003178,2]
[311605464,1705264311058,-913.46,0.0003178,2]
[311605465,1705264311067,-3703.12,0.0003178,2]
[311605466,1705264311076,-500.0,0.0003178,2]
[311605467,1705264311086,-379.68,0.0003178,2]
[311605468,1705264311096,-583.22,0.0003178,2]
[311605469,1705264311105,-30649.83,0.0003178,2]
[311605470,1705264311114,-3434.07,0.0003178,2]
[311605471,1705264311124,-500.0,0.0003178,2]
[311605472,1705264311136,-965.74,0.0003178,2]
[311605473,1705264311146,-1729.11,0.0003178,2]
[311605474,1705264311156,-842.61,0.0003178,2]
[311605475,1705264311168,-500.0,0.0003178,2]
[311605476,1705264311177,-1027.7,0.0003178,2]
[311605477,1705264311187,-11897.09,0.0003178,2]
[311605478,1705264311196,-6230.07,0.0003178,2]
[311605479,1705264311206,-1130.45,0.0003178,2]
[311605480,1705264311217,-500.0,0.0003178,2]
[311605481,1705264311227,-1353.14,0.0003178,2]
[311605482,1705264311237,-500.0,0.0003178,2]
[311605483,1705264311246,-500.0,0.0003178,5]
[311605484,1705264311255,-500.0,0.0003178,2]
[311605485,1705264311265,-3435.49,0.0003178,2]
[311605486,1705264311275,-500.0,0.0003178,2]
[311605487,1705264311285,-573.71,0.0003178,2]
[311605488,1705264311295,-644.33,0.0003178,2]
[311605489,1705264311305,-2448.9,0.0003178,2]
[311605490,1705264311315,-3036.82,0.0003178,2]
[311605491,1705264311324,-500.0,0.0003178,2]
[311605492,1705264311333,-597.1,0.0003178,2]
[311605493,1705264311343,-750.17,0.0003178,2]
[311605494,1705264311353,-828.04,0.0003178,2]
[311605495,1705264311362,-2478.07,0.0003178,2]
[311605496,1705264311371,-1871.96,0.0003178,2]
[311605497,1705264311384,-1895.33,0.0003178,2]
[311605498,1705264311393,-801.45,0.0003178,2]
[311605499,1705264311403,-1560.14,0.0003178,2]
[311605500,1705264311412,-3224.85,0.0003178,2]
[311605501,1705264311422,-533.31,0.0003178,2]
[311605502,1705264311432,-5325.11,0.0003178,2]
[311605503,1705264311442,-500.0,0.0003178,2]
[311605504,1705264311452,-500.0,0.0003178,2]
[311605505,1705264311461,-949.53,0.0003178,2]
[311605506,1705264311470,-1784.8,0.0003178,2]
[311605507,1705264311480,-730.14,0.0003178,2]
[311605508,1705264311489,-1488.85,0.0003178,2]
[311605509,1705264311498,-500.0,0.0003178,2]
[311605510,1705264311508,-2331.02,0.0003178,2]
[311605511,1705264311517,-847.15,0.0003178,2]
[311605512,1705264311527,-787.16,0.0003178,2]
[311605513,1705264311537,-1513.17,0.0003178,2]
[311605514,1705264311546,-841.76,0.0003178,2]
[311605515,1705264311556,-251.92098201,0.0003178,2]
[311605516,1705264311565,-524.76,0.0003178,2]
[311605517,1705264311574,-1046.23,0.0003178,2]
[311605518,1705264311583,-1523.32,0.0003178,2]
[311605519,1705264311593,-611.14,0.0003178,2]
[311605520,1705264311604,-500.0,0.0003178,2]
[311605521,1705264311614,-500.0,0.0003178,2]
[311605522,1705264311623,-4188.56,0.0003178,2]